[Event "11th LCC FIDE Open 2019"]
[Site "London"]
[Date "2019.12.05"]
[Round "8.30"]
[White "Eche, Sylvain"]
[Black "Smith, Andrew Philip"]
[Result "0-1"]
[ECO "C41"]
[WhiteElo "2054"]
[BlackElo "2172"]
[Annotator "RC"]
[PlyCount "136"]
[EventDate "2019.11.29"]
[EventType "swiss"]
[EventCountry "ENG"]
[SourceTitle "playchess.com"]
[Source "ChessBase"]
[SourceQuality "1"]
[TimeControl "40/5400+30:1800+30"]

1. e4 {[%emt 0:00:00]} e5 {[%emt 0:07:57]} 2. Nf3 {[%emt 0:00:00]} d6 {[%emt 0:00:06]} 3. d4 {[%emt 0:00:00]} Nd7 {[%emt 0:00:09]} 4. Bc4 {[%emt 0:00:57]} c6 {[%emt 0:00:56]} 5. a4 {[%emt 0:03:37]} Qf6 {[%emt 0:02:44]} 6. Nc3 {[%emt 0:04:36]} h6 {[%emt 0:00:28]} 7. b3 {[%emt 0:05:30]} Ne7 {[%emt 0:05:49]} 8. Bb2 {[%emt 0:10:11]} Ng6 {[%emt 0:05:19]} 9. Ne2 {[%emt 0:07:25]} Nb6 {[%emt 0:04:07]} 10. Bd3 {[%emt 0:04:25]} Bg4 {[%emt 0:00:48]} 11. Qd2 {[%emt 0:01:56]} Bxf3 {[%emt 0:04:32]} 12. gxf3 {[%emt 0:00:08]} Nh4 {[%emt 0:00:29]} 13. O-O-O {[%emt 0:01:01]} Nxf3 {[%emt 0:02:19]} 14. Qe3 {[%emt 0:06:30]} Qg5 {[%emt 0:06:51]} 15. h4 {[%emt 0:07:23]} Qxe3+ {[%emt 0:07:35]} 16. fxe3 {[%emt 0:00:02]} Be7 {[%emt 0:00:47]} 17. Rdf1 {[%emt 0:03:46]} Nxh4 {[%emt 0:01:54]} 18. dxe5 {[%emt 0:00:49]} dxe5 {[%emt 0:02:08]} 19. Bxe5 {[%emt 0:01:06]} O-O {[%emt 0:01:31]} 20. Ng3 {[%emt 0:05:57]} Nd7 {[%emt 0:10:26]} 21. Bb2 {[%emt 0:01:03]} Bg5 {[%emt 0:00:30]} 22. Nh5 {[%emt 0:04:49]} f6 {[%emt 0:09:07]} 23. Bc4+ {[%emt 0:04:19]} Kh7 {[%emt 0:01:21]} 24. Nf4 {[%emt 0:04:03]} Rae8 {[%emt 0:12:01]} 25. Ne6 {[%emt 0:03:18]} Rh8 {[%emt 0:00:44]} 26. e5 {[%emt 0:08:45]} Bxe3+ {[%emt 0:10:48]} 27. Kb1 {[%emt 0:00:19]} b5 {[%emt 0:01:16]} 28. axb5 {[%emt 0:02:16]} cxb5 {[%emt 0:00:02]} 29. Nxg7 {[%emt 0:06:05]} Rxe5 {[%emt 0:01:04]} 30. Bxe5 {[%emt 0:02:10]} Nxe5 {[%emt 0:00:01]} 31. Bxb5 {[%emt 0:01:08]} Kxg7 {[%emt 0:00:30]} 32. Rxh4 {[%emt 0:00:10]} Rb8 {[%emt 0:00:27]} 33. Be2 {[%emt 0:00:35]} Bg5 {[%emt 0:00:19]} 34. Ra4 {[%emt 0:00:12]} Rb7 {[%emt 0:00:14]} 35. Rd1 {[%emt 0:00:29]} Be3 {[%emt 0:00:51]} 36. Rd8 {[%emt 0:01:20]} Kg6 {[%emt 0:00:28]} 37. Ra6 {[%emt 0:00:38]} Bb6 {[%emt 0:00:40]} 38. Rd6 {[%emt 0:00:29]} Nf7 {[%emt 0:01:05]} 39. Bd3+ {[%emt 0:00:55]} Kg5 {[%emt 0:00:25]} 40. Rd5+ {[%emt 0:00:48]} Ne5 {[%emt 0:00:03]} 41. Ra4 {[%emt 0:03:11]} h5 {[%emt 0:00:26]} 42. Be4 {[%emt 0:03:44]} Rc7 {[%emt 0:03:26]} 43. Kb2 {[%emt 0:02:08]} h4 {[%emt 0:00:38]} 44. Bg2 {[%emt 0:00:53]} Be3 {[%emt 0:01:07]} 45. c4 {[%emt 0:02:45]} Kf4 {[%emt 0:00:54]} 46. Ra6 {[%emt 0:02:49]} Rf7 {[%emt 0:01:29]} 47. Rd8 {[%emt 0:01:57]} Kg3 {[%emt 0:00:32]} 48. Bd5 {[%emt 0:02:01]} Rg7 {[%emt 0:11:50]} 49. Rxf6 {[%emt 0:02:13]} Bg5 {[%emt 0:00:33]} 50. Rf1 {[%emt 0:02:18]} Nxc4+ {[%emt 0:02:45]} 51. bxc4 {[%emt 0:02:06]} Bxd8 {[%emt 0:00:25]} 52. Rg1+ {[%emt 0:00:08]} Kf2 {[%emt 0:01:47]} 53. Rxg7 {[%emt 0:01:26]} Bf6+ {[%emt 0:00:07]} 54. Kb3 {[%emt 0:02:25]} Bxg7 {[%emt 0:00:02]} 55. c5 {[%emt 0:01:19]} Be5 {[%emt 0:07:42]} 56. Kc4 {[%emt 0:02:35]} a6 {[%emt 0:01:00]} 57. Bb7 {[%emt 0:01:38]} a5 {[%emt 0:00:05]} 58. Kb5 {[%emt 0:01:02]} Bc7 {[%emt 0:00:10]} 59. Kc6 {[%emt 0:00:29]} Bd8 {[%emt 0:01:06]} 60. Kd7 {[%emt 0:01:40]} Bg5 {[%emt 0:00:07]} 61. Ke6 {[%emt 0:01:25]} h3 {[%emt 0:01:13]} 62. Kf5 {[%emt 0:00:27]} Bd8 {[%emt 0:00:43]} 63. Ke6 {[%emt 0:00:56]} h2 {[%emt 0:00:28]} 64. Kd7 {[%emt 0:00:14]} Bg5 {[%emt 0:00:13]} 65. c6 {[%emt 0:00:51]} Bf4 {[%emt 0:00:06]} 66. c7 {[%emt 0:00:12]} Bxc7 {[%emt 0:00:13]} 67. Kxc7 {[%emt 0:00:02]} a4 {[%emt 0:00:14]} 68. Kb6 {[%emt 0:00:13]} a3 {[%emt 0:00:06]} 0-1

[Event "11th LCC FIDE Open 2019"]
[Site "London"]
[Date "2019.12.05"]
[Round "8.32"]
[White "Deaconu, Mihai-Ionut"]
[Black "Pasztor, Balazs"]
[Result "0-1"]
[ECO "D29"]
[WhiteElo "1957"]
[BlackElo "2166"]
[Annotator "NA RC"]
[PlyCount "58"]
[EventDate "2019.11.29"]
[EventType "swiss"]
[EventCountry "ENG"]
[SourceTitle "playchess.com"]
[Source "ChessBase"]
[SourceQuality "1"]
[TimeControl "40/5400+30:1800+30"]

1. d4 {[%emt 0:02:20]} d5 {[%emt 0:00:00]} 2. c4 {[%emt 0:00:04]} dxc4 {[%emt 0:00:07]} 3. Nf3 {[%emt 0:00:04]} Nf6 {[%emt 0:00:42]} 4. e3 {[%emt 0:00:04]} a6 {[%emt 0:00:47]} 5. Bxc4 {[%emt 0:00:06]} e6 {[%emt 0:00:31]} 6. O-O {[%emt 0:00:17]} c5 {[%emt 0:00:54]} 7. Nc3 {[%emt 0:00:33]} b5 {[%emt 0:02:02]} 8. Bb3 {[%emt 0:04:15]} Bb7 {[%emt 0:01:30]} 9. Qe2 {[%emt 0:07:08]} Nbd7 {[%emt 0:03:09]} 10. Rd1 {[%emt 0:01:15]} Qb6 {[%emt 0:02:36]} 11. a3 {[%emt 0:12:10]} Rd8 {[%emt 0:08:28]} 12. dxc5 {[%emt 0:07:50]} Bxc5 {[%emt 0:02:25]} 13. Ba2 {[%emt 0:00:21]} O-O {[%emt 0:10:55]} 14. b4 {[%emt 0:01:57]} Bd6 {[%emt 0:05:45]} 15. h3 {[%emt 0:02:34]} Ne5 {[%emt 0:14:16]} 16. Bb2 {[%emt 0:13:22]} Bxf3 {[%emt 0:06:42]} 17. gxf3 {[%emt 0:00:05]} Qb7 {[%emt 0:01:51]} 18. e4 {[%emt 0:12:52]} Ng6 {[%emt 0:14:35]} 19. Qf1 {[%emt 0:21:49]} Be5 {[%emt 0:05:50]} 20. Rab1 {[%emt 0:02:41]} Nh4 {[%emt 0:03:13]} 21. Rd3 {[%emt 0:00:09]} Nh5 {[%emt 0:01:09]} 22. Bc1 {[%emt 0:00:09]} Qe7 {[%emt 0:01:13]} 23. Kh1 {[%emt 0:05:23]} Qf6 {[%emt 0:01:30]} 24. Nd1 {[%emt 0:01:36]} Rxd3 {[%emt 0:01:57]} 25. Qxd3 {[%emt 0:00:03]} Rd8 {[%emt 0:01:38]} 26. Qe2 {[%emt 0:00:05]} Nf4 {[%emt 0:01:34]} 27. Qf1 {[%emt 0:00:09]} Nxh3 {[%emt 0:02:30]} 28. Ne3 {[%emt 0:01:40]} Qxf3+ {[%emt 0:00:15]} 29. Ng2 {[%emt 0:00:40]} Rd1 {[%emt 0:00:11]} 0-1

[Event "11th LCC FIDE Open 2019"]
[Site "London"]
[Date "2019.12.05"]
[Round "8.34"]
[White "Zapolskis, Antanas"]
[Black "De Coverly, Roger D"]
[Result "1-0"]
[ECO "D03"]
[WhiteElo "2280"]
[BlackElo "1986"]
[Annotator "NA"]
[PlyCount "65"]
[EventDate "2019.11.29"]
[EventType "swiss"]
[EventCountry "ENG"]
[SourceTitle "playchess.com"]
[Source "ChessBase"]
[SourceQuality "1"]
[TimeControl "40/5400+30:1800+30"]

1. d4 {[%emt 0:00:00]} Nf6 {[%emt 0:00:00]} 2. Bg5 {[%emt 0:01:06]} d5 {[%emt 0:00:00]} 3. c3 {[%emt 0:00:21]} e6 {[%emt 0:03:07]} 4. Nd2 {[%emt 0:00:46]} Be7 {[%emt 0:00:50]} 5. e3 {[%emt 0:01:09]} h6 {[%emt 0:00:33]} 6. Bh4 {[%emt 0:00:26]} Nbd7 {[%emt 0:00:40]} 7. Ngf3 {[%emt 0:02:09]} O-O {[%emt 0:00:36]} 8. Bd3 {[%emt 0:00:12]} c5 {[%emt 0:01:48]} 9. O-O {[%emt 0:00:34]} b6 {[%emt 0:01:12]} 10. Ne5 {[%emt 0:09:18]} Nxe5 {[%emt 0:02:47]} 11. dxe5 {[%emt 0:00:08]} Nd7 {[%emt 0:00:48]} 12. Bxe7 {[%emt 0:00:28]} Qxe7 {[%emt 0:00:07]} 13. f4 {[%emt 0:00:52]} Bb7 {[%emt 0:02:00]} 14. Qh5 {[%emt 0:07:01]} f5 {[%emt 0:08:01]} 15. g4 {[%emt 0:00:21]} Qe8 {[%emt 0:03:28]} 16. Qh4 {[%emt 0:08:10]} c4 {[%emt 0:03:47]} 17. Bc2 {[%emt 0:00:19]} Qg6 {[%emt 0:03:09]} 18. h3 {[%emt 0:00:44]} h5 {[%emt 0:06:58]} 19. Kf2 {[%emt 0:01:08]} hxg4 {[%emt 0:08:48]} 20. Rg1 {[%emt 0:00:46]} Nc5 {[%emt 0:02:28]} 21. hxg4 {[%emt 0:02:07]} Ne4+ {[%emt 0:02:13]} 22. Ke2 {[%emt 0:01:44]} Qh7 {[%emt 0:07:48]} 23. Qxh7+ {[%emt 0:01:15]} Kxh7 {[%emt 0:00:06]} 24. gxf5 {[%emt 0:00:34]} exf5 {[%emt 0:02:20]} 25. Nf3 {[%emt 0:01:22]} Rae8 {[%emt 0:04:12]} 26. Rg2 {[%emt 0:08:05]} Kg8 {[%emt 0:04:32]} 27. Rag1 {[%emt 0:03:28]} Re7 {[%emt 0:04:52]} 28. Bxe4 {[%emt 0:00:14]} dxe4 {[%emt 0:07:17]} 29. Nh4 {[%emt 0:01:18]} Rd7 {[%emt 0:02:11]} 30. e6 {[%emt 0:00:13]} Rc7 {[%emt 0:01:10]} 31. Ng6 {[%emt 0:00:43]} Re8 {[%emt 0:00:49]} 32. Rh2 {[%emt 0:00:18]} Rxe6 {[%emt 0:00:36]} 33. Rh8+ {[%emt 0:00:08]} 1-0

[Event "11th LCC FIDE Open 2019"]
[Site "London"]
[Date "2019.12.05"]
[Round "8.35"]
[White "Chakanyuka, Charles"]
[Black "McClement, Andrew"]
[Result "0-1"]
[ECO "A34"]
[WhiteElo "1995"]
[BlackElo "2226"]
[Annotator "NA RC"]
[PlyCount "106"]
[EventDate "2019.11.29"]
[EventType "swiss"]
[EventCountry "ENG"]
[SourceTitle "playchess.com"]
[Source "ChessBase"]
[SourceQuality "1"]
[TimeControl "40/5400+30:1800+30"]

1. c4 {[%emt 0:04:46]} Nf6 {[%emt 0:01:15]} 2. Nc3 {[%emt 0:00:10]} e6 {[%emt 0:00:03]} 3. Nf3 {[%emt 0:00:16]} c5 {[%emt 0:02:16]} 4. g3 {[%emt 0:00:28]} Nc6 {[%emt 0:00:38]} 5. Bg2 {[%emt 0:00:10]} Be7 {[%emt 0:00:33]} 6. O-O {[%emt 0:00:17]} O-O {[%emt 0:00:20]} 7. d3 {[%emt 0:01:59]} a6 {[%emt 0:01:40]} 8. a3 {[%emt 0:01:44]} Rb8 {[%emt 0:00:16]} 9. Bf4 {[%emt 0:01:41]} d6 {[%emt 0:00:07]} 10. Rb1 {[%emt 0:02:54]} b5 {[%emt 0:00:19]} 11. Nd2 {[%emt 0:06:09]} Bd7 {[%emt 0:03:39]} 12. Nde4 {[%emt 0:01:24]} Ne8 {[%emt 0:01:36]} 13. b3 {[%emt 0:17:23]} f5 {[%emt 0:00:39]} 14. Nxc5 {[%emt 0:03:42]} dxc5 {[%emt 0:00:02]} 15. Bxb8 {[%emt 0:00:20]} Qxb8 {[%emt 0:00:14]} 16. e3 {[%emt 0:02:09]} Nf6 {[%emt 0:01:10]} 17. Qe2 {[%emt 0:04:11]} Qb6 {[%emt 0:08:21]} 18. Rfd1 {[%emt 0:02:19]} Rb8 {[%emt 0:00:54]} 19. Qc2 {[%emt 0:03:58]} Be8 {[%emt 0:05:15]} 20. Ne2 {[%emt 0:00:41]} Nd8 {[%emt 0:16:00]} 21. d4 {[%emt 0:05:24]} cxd4 {[%emt 0:00:25]} 22. exd4 {[%emt 0:00:08]} Bxa3 {[%emt 0:10:11]} 23. c5 {[%emt 0:02:08]} Qa7 {[%emt 0:02:33]} 24. Nf4 {[%emt 0:06:32]} Bb4 {[%emt 0:09:48]} 25. Ra1 {[%emt 0:04:42]} a5 {[%emt 0:03:20]} 26. Qe2 {[%emt 0:10:37]} Bf7 {[%emt 0:06:53]} 27. Qe5 {[%emt 0:05:01]} Rc8 {[%emt 0:03:22]} 28. Nd3 {[%emt 0:04:18]} Bc3 {[%emt 0:00:37]} 29. Rac1 {[%emt 0:00:24]} b4 {[%emt 0:00:18]} 30. Nf4 {[%emt 0:02:11]} Nc6 {[%emt 0:08:42]} 31. Qe3 {[%emt 0:03:07]} Ng4 {[%emt 0:00:23]} 32. Qd3 {[%emt 0:01:46]} Nxd4 {[%emt 0:02:01]} 33. Rxc3 {[%emt 0:02:35]} bxc3 {[%emt 0:00:09]} 34. h3 {[%emt 0:00:41]} c2 {[%emt 0:00:25]} 35. Rc1 {[%emt 0:00:19]} Qxc5 {[%emt 0:00:48]} 36. hxg4 {[%emt 0:00:07]} e5 {[%emt 0:00:16]} 37. Ne2 {[%emt 0:01:05]} Nxb3 {[%emt 0:00:19]} 38. Rf1 {[%emt 0:00:25]} c1=Q {[%emt 0:03:09]} 39. Nxc1 {[%emt 0:00:17]} Nxc1 {[%emt 0:00:08]} 40. Qxf5 {[%emt 0:00:33]} Ne2+ {[%emt 0:00:26]} 41. Kh2 {[%emt 0:30:15]} Nd4 {[%emt 0:30:21]} 42. Qd7 {[%emt 0:00:28]} Be6 {[%emt 0:00:24]} 43. Qb7 {[%emt 0:00:17]} Bxg4 {[%emt 0:00:27]} 44. Ra1 {[%emt 0:00:00]} Rf8 {[%emt 0:00:00]} 45. Qd5+ {[%emt 0:00:00]} Qxd5 {[%emt 0:00:00]} 46. Bxd5+ {[%emt 0:00:00]} Be6 {[%emt 0:00:00]} 47. Rxa5 {[%emt 0:00:00]} Bxd5 {[%emt 0:00:00]} 48. Rxd5 {[%emt 0:00:00]} Rxf2+ {[%emt 0:00:00]} 49. Kh3 {[%emt 0:00:00]} Rf5 {[%emt 0:00:00]} 50. g4 {[%emt 0:00:00]} Rg5 {[%emt 0:00:00]} 51. Kh4 {[%emt 0:00:00]} h6 {[%emt 0:00:00]} 52. Rd8+ {[%emt 0:00:00]} Kf7 {[%emt 0:00:00]} 53. Rd6 {[%emt 0:00:00]} Nc2 {[%emt 0:00:00]} 0-1

[Event "11th LCC FIDE Open 2019"]
[Site "London"]
[Date "2019.12.05"]
[Round "8.36"]
[White "Ifalore, Michael"]
[Black "Cordes, Hans-Joerg"]
[Result "1-0"]
[ECO "C03"]
[WhiteElo "1989"]
[BlackElo "2188"]
[Annotator "NA"]
[PlyCount "67"]
[EventDate "2019.11.29"]
[EventType "swiss"]
[EventCountry "ENG"]
[SourceTitle "playchess.com"]
[Source "ChessBase"]
[SourceQuality "1"]
[TimeControl "40/5400+30:1800+30"]

1. e4 {[%emt 0:00:00]} e6 {[%emt 0:01:49]} 2. d4 {[%emt 0:00:00]} d5 {[%emt 0:00:08]} 3. Nd2 {[%emt 0:00:00]} Be7 {[%emt 0:00:15]} 4. e5 {[%emt 0:00:00]} c5 {[%emt 0:01:08]} 5. c3 {[%emt 0:00:00]} Nc6 {[%emt 0:00:40]} 6. Bd3 {[%emt 0:00:00]} cxd4 {[%emt 0:01:50]} 7. cxd4 {[%emt 0:00:00]} Qb6 {[%emt 0:02:53]} 8. Ndf3 {[%emt 0:01:32]} Bd7 {[%emt 0:09:28]} 9. Ne2 {[%emt 0:00:06]} Rc8 {[%emt 0:18:02]} 10. O-O {[%emt 0:04:04]} Nb4 {[%emt 0:01:42]} 11. Bb1 {[%emt 0:00:04]} Qa6 {[%emt 0:14:25]} 12. Bd2 {[%emt 0:03:33]} Ba4 {[%emt 0:01:27]} 13. b3 {[%emt 0:00:56]} Bb5 {[%emt 0:00:16]} 14. Re1 {[%emt 0:00:58]} Nd3 {[%emt 0:04:13]} 15. Bxd3 {[%emt 0:01:25]} Bxd3 {[%emt 0:00:06]} 16. Rc1 {[%emt 0:00:42]} Rxc1 {[%emt 0:03:56]} 17. Bxc1 {[%emt 0:01:06]} Bb4 {[%emt 0:01:33]} 18. Bd2 {[%emt 0:00:03]} Ba3 {[%emt 0:00:17]} 19. Nf4 {[%emt 0:01:11]} Ne7 {[%emt 0:02:14]} 20. Re3 {[%emt 0:00:03]} Be4 {[%emt 0:04:36]} 21. Ng5 {[%emt 0:03:26]} Bg6 {[%emt 0:08:54]} 22. Qf3 {[%emt 0:05:52]} Nf5 {[%emt 0:02:04]} 23. Nxg6 {[%emt 0:01:09]} hxg6 {[%emt 0:03:13]} 24. g4 {[%emt 0:00:09]} Be7 {[%emt 0:00:53]} 25. gxf5 {[%emt 0:01:14]} Bxg5 {[%emt 0:00:34]} 26. Rc3 {[%emt 0:01:30]} Bd8 {[%emt 0:05:43]} 27. fxg6 {[%emt 0:02:21]} O-O {[%emt 0:01:49]} 28. Qg4 {[%emt 0:03:57]} Qxa2 {[%emt 0:06:02]} 29. Bc1 {[%emt 0:08:46]} Qb1 {[%emt 0:02:39]} 30. gxf7+ {[%emt 0:00:19]} Rxf7 {[%emt 0:00:47]} 31. Rc8 {[%emt 0:00:06]} Rf8 {[%emt 0:01:19]} 32. Qxe6+ {[%emt 0:00:09]} Kh7 {[%emt 0:00:08]} 33. Qxd5 {[%emt 0:03:22]} Rf5 {[%emt 0:00:00]} 34. Qxd8 {[%emt 0:00:00]} 1-0

[Event "11th LCC FIDE Open 2019"]
[Site "London"]
[Date "2019.12.05"]
[Round "8.39"]
[White "Goh, Zi Han"]
[Black "Sarpotdar, Amogh"]
[Result "1/2-1/2"]
[ECO "D35"]
[WhiteElo "2134"]
[BlackElo "2015"]
[Annotator "ChessBase"]
[PlyCount "99"]
[EventDate "2019.11.29"]
[EventType "swiss"]
[EventCountry "ENG"]
[SourceTitle "playchess.com"]
[Source "ChessBase"]
[SourceQuality "1"]
[TimeControl "40/5400+30:1800+30"]

1. d4 {[%emt 1:12:37]} Nf6 {[%emt 0:00:24]} 2. c4 {[%emt 0:00:09]} e6 {[%emt 0:00:10]} 3. Nc3 {[%emt 0:00:07]} d5 {[%emt 0:00:10]} 4. cxd5 {[%emt 0:00:06]} exd5 {[%emt 0:00:12]} 5. Bg5 {[%emt 0:00:03]} Be7 {[%emt 0:00:11]} 6. e3 {[%emt 0:00:07]} O-O {[%emt 0:00:11]} 7. Bd3 {[%emt 0:03:54]} c5 8. Nge2 {[%emt 0:16:24]} c4 {[%emt 0:04:44]} 9. Bc2 {[%emt 0:03:48]} Nc6 {[%emt 0:00:37]} 10. Nf4 {[%emt 0:03:07]} Be6 {[%emt 0:01:03]} 11. Bxf6 {[%emt 0:13:54]} Bxf6 {[%emt 0:00:29]} 12. Nfxd5 {[%emt 0:03:14]} Bxd4 {[%emt 0:20:38]} 13. exd4 {[%emt 0:05:45]} Bxd5 {[%emt 0:00:11]} 14. Qh5 {[%emt 0:09:33]} f5 {[%emt 0:07:01]} 15. O-O-O {[%emt 0:06:33]} Qd7 {[%emt 0:05:40]} 16. Rhe1 {[%emt 0:12:28]} Rac8 {[%emt 0:15:31]} 17. Re3 {[%emt 0:02:24]} Nb4 {[%emt 0:03:09]} 18. Re5 {[%emt 0:04:38]} Nd3+ {[%emt 0:03:48]} 19. Bxd3 {[%emt 0:03:24]} cxd3 {[%emt 0:00:12]} 20. Rxd3 {[%emt 0:08:37]} Bxa2 {[%emt 0:00:45]} 21. Qg5 {[%emt 0:04:28]} Rf7 {[%emt 0:05:54]} 22. d5 {[%emt 0:01:25]} Bc4 {[%emt 0:10:10]} 23. Rde3 {[%emt 0:00:43]} Bb5 {[%emt 0:06:08]} 24. Kb1 {[%emt 0:00:42]} f4 {[%emt 0:00:19]} 25. R3e4 {[%emt 0:00:36]} Bd3+ {[%emt 0:00:12]} 26. Kc1 {[%emt 0:00:12]} Bxe4 {[%emt 0:00:19]} 27. Rxe4 Rf5 {[%emt 0:04:02]} 28. Re7 {[%emt 0:00:26]} Rxg5 {[%emt 0:00:58]} 29. Rxd7 {[%emt 0:00:05]} b5 {[%emt 0:01:28]} 30. Kd2 {[%emt 0:01:52]} b4 {[%emt 0:02:47]} 31. Ne4 {[%emt 0:00:13]} Re5 {[%emt 0:00:03]} 32. f3 {[%emt 0:00:15]} Rce8 {[%emt 0:02:11]} 33. d6 {[%emt 0:00:31]} Rd5+ {[%emt 0:00:09]} 34. Kc2 {[%emt 0:00:22]} a5 35. Rc7 {[%emt 0:01:05]} Rd8 {[%emt 0:00:45]} 36. Kb3 {[%emt 0:00:35]} h6 {[%emt 0:01:56]} 37. Kc4 {[%emt 0:00:17]} R5xd6 {[%emt 0:00:13]} 38. Nxd6 {[%emt 0:00:15]} Rxd6 39. Kb3 {[%emt 0:01:28]} Rd2 {[%emt 0:01:02]} 40. Rc2 {[%emt 0:00:34]} Rxc2 {[%emt 0:00:39]} 41. Kxc2 {[%emt 0:00:02]} Kf7 {[%emt 0:00:28]} 42. Kb3 {[%emt 0:00:04]} Ke6 {[%emt 0:00:16]} 43. Ka4 Kd5 {[%emt 0:00:16]} 44. Kxa5 {[%emt 0:06:26]} Kc4 {[%emt 0:02:05]} 45. g3 {[%emt 0:21:30]} g5 {[%emt 0:01:15]} 46. gxf4 {[%emt 0:01:30]} gxf4 {[%emt 0:00:02]} 47. Ka4 {[%emt 0:00:53]} b3 {[%emt 0:03:06]} 48. Ka3 {[%emt 0:00:35]} Kd3 {[%emt 0:00:09]} 49. Kxb3 {[%emt 0:00:05]} Ke3 {[%emt 0:00:05]} 50. Kc3 {[%emt 0:01:34]} 1/2-1/2

[Event "11th LCC FIDE Open 2019"]
[Site "London"]
[Date "2019.12.05"]
[Round "8.41"]
[White "Makkar, Rajat"]
[Black "AuYeung, Chi Hung Jonathan"]
[Result "1-0"]
[ECO "A64"]
[WhiteElo "2125"]
[BlackElo "1770"]
[Annotator "NA"]
[PlyCount "105"]
[EventDate "2019.11.29"]
[EventType "swiss"]
[EventCountry "ENG"]
[SourceTitle "playchess.com"]
[Source "ChessBase"]
[SourceQuality "1"]
[TimeControl "40/5400+30:1800+30"]

1. d4 {[%emt 0:00:00]} c5 {[%emt 0:00:00]} 2. d5 {[%emt 0:00:07]} Nf6 {[%emt 0:00:00]} 3. c4 {[%emt 0:00:26]} e6 {[%emt 0:00:00]} 4. Nc3 {[%emt 0:00:17]} exd5 {[%emt 0:00:02]} 5. cxd5 {[%emt 0:00:18]} d6 {[%emt 0:00:06]} 6. Nf3 {[%emt 0:00:22]} g6 {[%emt 0:00:15]} 7. g3 {[%emt 0:00:13]} Bg7 {[%emt 0:00:48]} 8. Bg2 {[%emt 0:00:16]} O-O {[%emt 0:00:09]} 9. O-O {[%emt 0:00:18]} Re8 {[%emt 0:01:28]} 10. Nd2 {[%emt 0:00:36]} Nbd7 {[%emt 0:04:55]} 11. h3 {[%emt 0:00:38]} a6 {[%emt 0:04:34]} 12. a4 {[%emt 0:00:16]} Rb8 {[%emt 0:02:50]} 13. Nc4 {[%emt 0:00:23]} Ne5 {[%emt 0:00:55]} 14. Na3 {[%emt 0:00:12]} c4 {[%emt 0:20:09]} 15. e4 {[%emt 0:11:50]} Qc7 {[%emt 0:00:50]} 16. Be3 {[%emt 0:03:06]} Nd3 {[%emt 0:02:21]} 17. b3 {[%emt 0:16:36]} Nd7 {[%emt 0:08:03]} 18. Nxc4 {[%emt 0:03:14]} Bxc3 {[%emt 0:03:43]} 19. Qxd3 {[%emt 0:00:14]} Bxa1 {[%emt 0:01:25]} 20. Rxa1 {[%emt 0:00:29]} Nc5 {[%emt 0:02:53]} 21. Qc2 {[%emt 0:03:37]} Nxe4 {[%emt 0:10:27]} 22. Bxe4 {[%emt 0:02:05]} b5 {[%emt 0:01:49]} 23. axb5 {[%emt 0:01:15]} axb5 {[%emt 0:08:40]} 24. Nd2 {[%emt 0:03:06]} Qxc2 {[%emt 0:04:14]} 25. Bxc2 {[%emt 0:00:12]} Re5 {[%emt 0:03:00]} 26. Bf4 {[%emt 0:03:10]} Rxd5 {[%emt 0:03:21]} 27. Ne4 {[%emt 0:00:25]} Kg7 {[%emt 0:01:57]} 28. Nxd6 {[%emt 0:00:57]} Bxh3 {[%emt 0:04:08]} 29. Be4 {[%emt 0:01:26]} Rh5 {[%emt 0:03:17]} 30. Bf3 {[%emt 0:00:46]} Rc5 {[%emt 0:01:08]} 31. Ne4 {[%emt 0:01:12]} Rcc8 {[%emt 0:02:19]} 32. Bxb8 {[%emt 0:01:31]} Rxb8 {[%emt 0:00:08]} 33. Ng5 {[%emt 0:01:02]} Be6 {[%emt 0:02:11]} 34. Nxe6+ {[%emt 0:00:20]} fxe6 {[%emt 0:00:01]} 35. Ra7+ {[%emt 0:00:38]} Kh6 {[%emt 0:00:20]} 36. b4 {[%emt 0:00:19]} e5 {[%emt 0:01:14]} 37. Re7 {[%emt 0:00:49]} Rf8 {[%emt 0:01:04]} 38. Bc6 {[%emt 0:00:26]} Kg5 {[%emt 0:01:03]} 39. Rxe5+ {[%emt 0:00:15]} Kg4 {[%emt 0:00:20]} 40. Bd7+ {[%emt 0:00:20]} Rf5 {[%emt 0:00:28]} 41. Rxb5 {[%emt 0:30:32]} h5 {[%emt 0:30:14]} 42. Kg2 {[%emt 0:00:15]} h4 {[%emt 0:00:16]} 43. Bxf5+ {[%emt 0:00:08]} gxf5 {[%emt 0:00:11]} 44. gxh4 {[%emt 0:00:25]} f4 {[%emt 0:00:12]} 45. h5 {[%emt 0:00:10]} f3+ {[%emt 0:00:05]} 46. Kh2 {[%emt 0:00:28]} Kf4 {[%emt 0:00:05]} 47. h6 {[%emt 0:00:11]} Ke4 {[%emt 0:00:08]} 48. h7 {[%emt 0:00:16]} Kd3 {[%emt 0:00:06]} 49. h8=Q {[%emt 0:00:10]} Ke2 {[%emt 0:00:06]} 50. Qd4 {[%emt 0:00:46]} Kf1 {[%emt 0:00:12]} 51. Rc5 {[%emt 0:00:14]} Ke2 {[%emt 0:00:14]} 52. Qe3+ {[%emt 0:00:10]} Kf1 {[%emt 0:00:09]} 53. Rc1# {[%emt 0:00:09]} 1-0

[Event "11th LCC FIDE Open 2019"]
[Site "London"]
[Date "2019.12.05"]
[Round "8.42"]
[White "Kuzhelev, Timur"]
[Black "Bates, Caspar J"]
[Result "0-1"]
[ECO "C29"]
[WhiteElo "1745"]
[BlackElo "2120"]
[Annotator "NA"]
[PlyCount "78"]
[EventDate "2019.11.29"]
[EventType "swiss"]
[EventCountry "ENG"]
[SourceTitle "playchess.com"]
[Source "ChessBase"]
[SourceQuality "1"]
[TimeControl "40/5400+30:1800+30"]

1. e4 {[%emt 0:00:00]} e5 {[%emt 0:00:00]} 2. Nc3 {[%emt 0:00:00]} Nf6 {[%emt 0:00:32]} 3. f4 {[%emt 0:00:00]} d5 {[%emt 0:00:27]} 4. fxe5 {[%emt 0:01:00]} Nxe4 {[%emt 0:00:14]} 5. Nf3 {[%emt 0:00:03]} Be7 {[%emt 0:05:32]} 6. d3 {[%emt 0:02:00]} Nxc3 {[%emt 0:01:11]} 7. bxc3 {[%emt 0:00:05]} O-O {[%emt 0:05:58]} 8. Be2 {[%emt 0:00:14]} f6 {[%emt 0:01:39]} 9. exf6 {[%emt 0:00:12]} Bxf6 {[%emt 0:00:03]} 10. d4 {[%emt 0:00:05]} Nc6 {[%emt 0:13:26]} 11. O-O {[%emt 0:01:08]} Bg4 {[%emt 0:11:20]} 12. Bf4 {[%emt 0:05:03]} Na5 {[%emt 0:05:30]} 13. Ne5 {[%emt 0:01:38]} Bxe2 {[%emt 0:05:02]} 14. Qxe2 {[%emt 0:00:04]} Qe8 {[%emt 0:02:04]} 15. Rae1 {[%emt 0:00:20]} Bxe5 {[%emt 0:07:45]} 16. Bxe5 {[%emt 0:00:15]} Qd7 {[%emt 0:02:01]} 17. Rxf8+ {[%emt 0:03:58]} Rxf8 {[%emt 0:00:29]} 18. Rf1 {[%emt 0:00:03]} Rxf1+ {[%emt 0:05:09]} 19. Kxf1 {[%emt 0:00:03]} c6 {[%emt 0:01:17]} 20. g4 {[%emt 0:01:27]} Qe6 {[%emt 0:05:14]} 21. h4 {[%emt 0:02:28]} Nc4 {[%emt 0:00:44]} 22. Kg2 {[%emt 0:00:11]} a6 {[%emt 0:04:47]} 23. Kg3 {[%emt 0:00:36]} Nd6 {[%emt 0:02:26]} 24. Qf3 {[%emt 0:02:31]} Ne4+ {[%emt 0:00:17]} 25. Kg2 {[%emt 0:00:28]} b5 {[%emt 0:02:39]} 26. h5 {[%emt 0:02:59]} g6 {[%emt 0:03:24]} 27. h6 {[%emt 0:00:29]} Qe7 {[%emt 0:02:24]} 28. Bg7 {[%emt 0:00:54]} Ng5 {[%emt 0:01:19]} 29. Qf2 {[%emt 0:02:32]} Qe4+ {[%emt 0:02:50]} 30. Kh2 {[%emt 0:00:06]} Ne6 {[%emt 0:00:31]} 31. Be5 {[%emt 0:00:49]} Qxg4 {[%emt 0:01:41]} 32. Bg7 {[%emt 0:02:58]} Qf4+ {[%emt 0:01:34]} 33. Qxf4 {[%emt 0:00:30]} Nxf4 {[%emt 0:00:02]} 34. Kg3 {[%emt 0:00:09]} Ne2+ {[%emt 0:00:12]} 35. Kg4 {[%emt 0:00:05]} Kf7 {[%emt 0:00:14]} 36. c4 {[%emt 0:00:11]} bxc4 {[%emt 0:01:12]} 37. Kf3 {[%emt 0:00:06]} Nc3 {[%emt 0:00:34]} 38. Kf4 {[%emt 0:00:32]} Ke6 {[%emt 0:00:34]} 39. a3 {[%emt 0:00:03]} Nb5 {[%emt 0:01:05]} 0-1